fUST/lending_fUST_20240110
["ID","MTS","AMOUNT","RATE_DAILY","PERIOD"]
[310985868,1704841839315,-155.11784676,0.00025,2]
[310985870,1704841839325,-3000.0,0.00025,2]
[310985872,1704841839334,-613.86507578,0.00025,2]
[310985874,1704841839343,-3006.85624099,0.00025,2]
[310985876,1704841839352,-4709.99124251,0.00025,2]
[310985878,1704841839361,-763.21617798,0.00025,2]
[310985880,1704841839371,-155.0,0.00025,2]
[310985882,1704841839380,-978.88032498,0.000259,2]
[310985884,1704841839390,-525.7750246,0.00026,2]
[310985886,1704841839399,-3580.53429443,0.00026,2]
[310985888,1704841839408,-678.89232854,0.000264,2]
[310985890,1704841839418,-496.879336,0.0002698,5]
[310985892,1704841839427,-2965.68455569,0.00027,2]
[310985894,1704841839437,-1407.38454672,0.00027,2]
[310985896,1704841839447,-19951.62,0.00027397,3]
[310985898,1704841839456,-16626.35,0.00027397,3]
[310985900,1704841839465,-13855.3,0.00027397,3]
[310985902,1704841839475,-33079.52681761,0.000275,2]
[310985904,1704841839485,-622.94461643,0.0002772,2]
[310985906,1704841839494,-155.03015176,0.00028,2]
[310985908,1704841839503,-304.92883245,0.00028,2]
[310985910,1704841839513,-157.76589739,0.0002828,2]
[310985912,1704841839524,-5000.0,0.00029,3]
[310985914,1704841839533,-8878.11747363,0.00029,2]
[310985916,1704841839543,-1982.4602042,0.00029,2]
[310985918,1704841839552,-830.68320521,0.00029,2]
[310985920,1704841839562,-620.14723082,0.00029106,2]
[310985922,1704841839571,-1678.90217826,0.000295,30]
[310985924,1704841839581,-219.64,0.00029789,2]
[310985927,1704841839591,-219.64,0.00029789,2]
[310985929,1704841839600,-219.64,0.00029789,2]
[310985930,1704841839609,-219.64,0.00029789,2]
[310985933,1704841839619,-219.64,0.00029789,2]
[310985935,1704841839628,-219.64,0.00029789,2]
[310985937,1704841839638,-219.64,0.00029789,2]
[310985939,1704841839647,-219.64,0.00029789,2]
[310985940,1704841839657,-219.64,0.00029789,2]
[310985942,1704841839666,-19987.45,0.00029789,2]
[310985945,1704841839676,-227123.73866144,0.0002979,7]
[310985947,1704841839685,-362.69271405,0.0003,4]
[310985949,1704841839695,-228.42081252,0.0003,4]
[310985950,1704841839710,-243.70040844,0.0003,4]
[310985953,1704841839731,-463.25005188,0.0003,4]
[310985955,1704841839740,-686.45378424,0.0003,4]
[310985957,1704841839749,-6243.35439241,0.0003,4]
[310985959,1704841839758,-2752.84129345,0.0003,2]
[310985961,1704841839770,-448.35344784,0.0003,2]
[310985963,1704841839779,-2910.28130465,0.0003,10]
[310985965,1704841839790,-216.0,0.0003,2]
[310985967,1704841839799,-282.50801309,0.0003,3]
[310985969,1704841839809,-1200.0,0.0003,4]
[310985971,1704841839818,-197.28565553,0.0003013,2]
[310985973,1704841839827,-247.70965668,0.000305,2]
[310985975,1704841839836,-620.00736154,0.00030561,2]
[310985977,1704841839847,-324.58521239,0.00030577,2]
[310985979,1704841839856,-421.2349625,0.00030577,2]
[310985981,1704841839867,-2946.13534401,0.00030577,2]
[310985983,1704841839876,-33103.14530828,0.00031,4]
[310985985,1704841839886,-539.41790632,0.00031,2]
[310985987,1704841839895,-680.81316922,0.000318,3]
[310985989,1704841839904,-620.02755432,0.0003201,2]
[310985991,1704841839913,-620.00036808,0.00032089,2]
[310985993,1704841839923,-250.0,0.00032876,10]
[310985995,1704841839932,-507.60907404,0.00032876,7]
[310985997,1704841839942,-390.28907965,0.00032876,7]
[310985999,1704841839951,-156.33172071,0.00032876,7]
[310986002,1704841839960,-500.0,0.00032876,7]
[310986005,1704841839969,-502.66251205,0.00032876,7]
[310986008,1704841839978,-179.33513835,0.00032876,7]
[310986010,1704841839987,-527.0837862,0.00032876,7]
[310986012,1704841839997,-177.31337187,0.00032876,7]
[310986014,1704841840006,-500.0,0.00032876,7]
[310986016,1704841840018,-581.56,0.00032876,2]
[310986018,1704841840028,-649.46848965,0.00033,4]
[310986020,1704841840037,-8000.0,0.00033,14]
[310986022,1704841840047,-581.56,0.00033013,2]
[310986024,1704841840056,-193.359276,0.0003302,2]
[310986026,1704841840066,-223.126942,0.0003302,2]
[310986028,1704841840075,-463.492083,0.0003302,2]
[310986030,1704841840084,-341.731993,0.0003302,2]
[310986032,1704841840094,-499.604616,0.0003302,2]
[310986034,1704841840103,-512.59799,0.0003302,2]
[310986036,1704841840112,-231.746041,0.0003302,2]
[310986038,1704841840122,-50000.0,0.0003303,4]
[310986040,1704841840132,-152.38900235,0.0003309,7]
[310986042,1704841840141,-581.56,0.0003315,2]
[310986058,1704841840289,-157.88223061,0.00033159,7]
[310986060,1704841840298,-500.0,0.00033197,7]
[310986062,1704841840307,-327.27121741,0.00033197,7]
[310986064,1704841840316,-200.70334912,0.00033197,7]
[310986066,1704841840325,-645.48067931,0.00033197,7]
[310986068,1704841840335,-500.0,0.00033197,7]
[310986070,1704841840344,-7859.48915903,0.00033198,3]
[310986072,1704841840353,-66959.33145098,0.00033198,5]
[310986074,1704841840362,-34738.43302229,0.00033198,5]
[310986076,1704841840371,-50000.0,0.00033198,4]
[310986078,1704841840380,-581.56,0.00033287,2]
[310986080,1704841840389,-157.88223061,0.00033384,7]
[310986082,1704841840398,-581.56,0.00033424,2]
[310986084,1704841840408,-193.359276,0.00033433,2]
[310986086,1704841840417,-463.492083,0.00033433,2]
[310986088,1704841840426,-341.731993,0.00033433,2]
[310986090,1704841840435,-499.604616,0.00033433,2]
[310986091,1704841840444,-512.59799,0.00033433,2]
[310986093,1704841840454,-231.746041,0.00033433,2]
[310986095,1704841840463,-581.56,0.00033561,2]
[310986097,1704841840472,-620.0000184,0.00033694,2]
[310986099,1704841840480,-581.56,0.00033698,2]
[310986101,1704841840489,-268802.32634193,0.000338,2]
[310986103,1704841840499,-155.0,0.0003382,2]
[310986105,1704841840508,-581.56,0.00033835,2]
[310986107,1704841840518,-193.359276,0.00033846,2]
[310986109,1704841840527,-463.492083,0.00033846,2]
[310986111,1704841840536,-341.731993,0.00033846,2]
[310986113,1704841840546,-499.604616,0.00033846,2]
[310986115,1704841840555,-512.59799,0.00033846,2]
[310986117,1704841840564,-231.746041,0.00033846,2]
[310986119,1704841840572,-581.56,0.00033972,2]
[310986121,1704841840582,-157.88223061,0.00033975,7]
[310986122,1704841840592,-1000.0,0.00034,7]
[310986124,1704841840601,-1707.05474802,0.00034043,2]
[310986126,1704841840611,-581.56,0.00034109,2]
[310986128,1704841840620,-157.88223061,0.00034137,7]
[310986130,1704841840629,-500.0,0.00034246,10]
[310986132,1704841840637,-581.56,0.00034246,2]
[310986134,1704841840646,-193.359276,0.00034258,2]
[310986136,1704841840657,-463.492083,0.00034258,2]
[310986138,1704841840666,-341.731993,0.00034258,2]
[310986140,1704841840675,-499.604616,0.00034258,2]
[310986142,1704841840684,-512.59799,0.00034258,2]
[310986144,1704841840693,-231.746041,0.00034258,2]
[310986146,1704841840702,-157.88223061,0.00034302,7]
[310986148,1704841840711,-581.56,0.00034383,2]
[310986150,1704841840719,-581.56,0.0003452,2]
[310986152,1704841840728,-4000.0,0.00034521,2]
[310986153,1704841840737,-1000.0,0.0003456,2]
[310986155,1704841840746,-1000.0,0.00034572,2]
[310986157,1704841840756,-1000.0,0.00034574,2]
[310986159,1704841840765,-1000.0,0.00034582,2]
[310986161,1704841840775,-1000.0,0.00034612,2]
[310986163,1704841840784,-1000.0,0.00034615,2]
[310986165,1704841840793,-391.31655973,0.00034621,2]
[310986167,1704841840802,-1000.0,0.00034629,2]
[310986169,1704841840811,-1000.0,0.00034644,2]
[310986171,1704841840820,-581.56,0.00034657,2]
[310986173,1704841840829,-193.359276,0.00034671,2]
[310986175,1704841840838,-463.492083,0.00034671,2]
[310986177,1704841840847,-341.731993,0.00034671,2]
[310986178,1704841840856,-499.604616,0.00034671,2]
[310986180,1704841840865,-512.59799,0.00034671,2]
[310986182,1704841840874,-231.746041,0.00034671,2]
[310986184,1704841840883,-1000.0,0.0003468,2]
[310986186,1704841840892,-162.01638223,0.00034701,5]
[310986188,1704841840902,-1000.0,0.00034704,2]
[310986190,1704841840911,-152.38900235,0.00034733,7]
[310986192,1704841840919,-1000.0,0.00034736,2]
[310986194,1704841840929,-150.0,0.00034771,2]
[310986196,1704841840938,-581.56,0.00034794,2]
[310986198,1704841840947,-13632.10155416,0.00034814,5]
[310986199,1704841840956,-157.88223061,0.00034835,7]
[310986201,1704841840965,-157.88223061,0.0003485,7]
[310986203,1704841840974,-278.72399994,0.000349,30]
[310986205,1704841840983,-12220.9100946,0.000349,5]
[310986207,1704841840992,-581.56,0.00034931,2]
[310986209,1704841841001,-157.88223061,0.00034968,7]
[310986211,1704841841009,-24140.18610249,0.0003498,14]
[310986213,1704841841019,-157.88223061,0.00034993,7]
[310986215,1704841841028,-7803.1787706,0.00035,4]
[310986216,1704841841037,-6802.96007234,0.00035,4]
[310986218,1704841841048,-591.11085398,0.00035,2]
[310986220,1704841841057,-236.51854,0.00035,7]
[310986222,1704841841066,-544.39643349,0.00035,7]
[310986224,1704841841076,-250.0,0.00035,2]
[310986226,1704841841084,-9973.97789574,0.00035,3]
[310986228,1704841841093,-46191.73474708,0.00035,2]
[310986230,1704841841102,-309.81411154,0.00035,4]
[310986232,1704841841111,-2967.04,0.00035,2]
[310986234,1704841841120,-290.09823479,0.00035,4]
[310986236,1704841841129,-813.30493426,0.00035,14]
[310986237,1704841841138,-7503.56939095,0.00035,45]
[310986239,1704841841147,-332.52969855,0.00035,4]
[310986241,1704841841156,-156.08945156,0.00035,6]
[310986243,1704841841165,-581.56,0.00035068,2]
[310986245,1704841841175,-150.98490151,0.00035186,2]
[310986247,1704841841184,-155.0,0.0003519,2]
[310986249,1704841841193,-581.56,0.00035205,2]
[310986251,1704841841201,-7219.96520272,0.000353,12]
[310986252,1704841841210,-581.56,0.00035342,2]
[310986254,1704841841219,-620.00000092,0.00035379,2]
[310986256,1704841841228,-1500.0,0.000354,2]
[310986258,1704841841237,-152.38900235,0.00035419,7]
[310986260,1704841841246,-152.38900235,0.00035443,7]
[310986262,1704841841255,-581.56,0.00035479,2]
[310986264,1704841841266,-47058.90272354,0.000355,14]
[310986266,1704841841275,-32098.36745887,0.00035516,3]
[310986268,1704841841284,-4681.70147795,0.00035518,2]
[310986270,1704841841293,-157.88223061,0.00035579,7]
[310986272,1704841841302,-301.0,0.00035613,2]
[310986274,1704841841310,-151.0,0.00035616,2]
[310986275,1704841841319,-218.43436,0.00035616,2]
[310986277,1704841841328,-305.823861,0.00035616,4]
[310986279,1704841841337,-500.0,0.00035616,2]
[310986281,1704841841346,-500.0,0.00035616,2]
[310986283,1704841841355,-500.0,0.00035616,2]
[310986285,1704841841364,-500.0,0.00035616,2]
[310986287,1704841841373,-500.0,0.00035616,2]
[310986289,1704841841382,-750.0,0.00035616,10]
[310986291,1704841841391,-500.0,0.00035616,2]
[310986293,1704841841402,-500.0,0.00035616,2]
[310986295,1704841841411,-500.0,0.00035616,2]
[310986297,1704841841420,-500.0,0.00035616,2]
[310986298,1704841841429,-677.1,0.00035616,2]
[310986300,1704841841438,-500.0,0.00035616,2]
[310986302,1704841841447,-500.0,0.00035616,2]
[310986304,1704841841456,-500.0,0.00035616,2]
[310986306,1704841841466,-500.0,0.00035616,2]
[310986308,1704841841476,-500.0,0.00035616,2]
[310986310,1704841841485,-500.0,0.00035616,2]
[310986312,1704841841494,-500.0,0.00035616,2]
[310986314,1704841841503,-502.58366231,0.00035616,2]
[310986315,1704841841512,-500.0,0.00035616,2]
[310986317,1704841841526,-500.0,0.00035616,2]
[310986319,1704841841536,-245.43479304,0.00035616,2]
[310986321,1704841841548,-500.0,0.00035616,2]
[310986323,1704841841558,-500.0,0.00035616,2]
[310986325,1704841841568,-500.0,0.00035616,2]
[310986327,1704841841578,-500.69611721,0.00035616,2]
[310986329,1704841841588,-500.0,0.00035616,2]
[310986331,1704841841598,-500.0,0.00035616,2]
[310986333,1704841841608,-503.4854636,0.00035616,2]
[310986335,1704841841617,-500.0,0.00035616,2]
[310986337,1704841841629,-500.0,0.00035616,2]
[310986338,1704841841644,-500.0,0.00035616,2]
[310986340,1704841841653,-232.68741591,0.00035616,2]
[310986342,1704841841663,-500.0,0.00035616,2]
[310986344,1704841841672,-527.37573656,0.00035616,2]
[310986346,1704841841682,-3491.32,0.00035616,2]
[310986348,1704841841691,-1320.91,0.00035616,2]
[310986350,1704841841700,-200.0,0.00035616,2]
[310986352,1704841841710,-500.0,0.00035616,2]
[310986354,1704841841720,-500.0,0.00035616,2]
[310986356,1704841841729,-500.0,0.00035616,2]
[310986358,1704841841739,-517.84558427,0.00035616,2]
[310986360,1704841841748,-500.0,0.00035616,2]
[310986362,1704841841756,-307.51765686,0.00035616,2]
[310986364,1704841841766,-1000.0,0.00035616,2]
[310986365,1704841841781,-500.0,0.00035616,2]
[310986367,1704841841794,-500.0,0.00035616,2]
[310986369,1704841841804,-500.0,0.00035616,2]
[310986371,1704841841813,-500.0,0.00035616,2]
[310986373,1704841841823,-500.0,0.00035616,2]
[310986375,1704841841833,-500.0,0.00035616,2]
[310986377,1704841841841,-500.0,0.00035616,2]
[310986379,1704841841850,-500.0,0.00035616,2]
[310986381,1704841841858,-500.34286744,0.00035616,2]
[310986382,1704841841869,-500.90203694,0.00035616,2]
[310986383,1704841841877,-501.94083797,0.00035616,2]
[310986384,1704841841886,-500.0,0.00035616,2]
[310986385,1704841841896,-492.92540586,0.00035616,2]
[310986386,1704841841904,-500.0,0.00035616,2]
[310986387,1704841841913,-522.21,0.00035616,2]
[310986388,1704841841922,-575.14257119,0.00035616,2]
[310986389,1704841841931,-500.0,0.00035616,2]
[310986390,1704841841939,-500.0,0.00035616,2]
[310986391,1704841841948,-500.0,0.00035616,2]
[310986392,1704841841958,-381.12834279,0.00035616,2]
[310986393,1704841841967,-500.0,0.00035616,2]
[310986394,1704841841976,-500.0,0.00035616,2]
[310986395,1704841841985,-500.0,0.00035616,2]
[310986396,1704841841995,-506.84954695,0.00035616,2]
[310986397,1704841842003,-500.0,0.00035616,2]
[310986398,1704841842013,-422.40092155,0.00035616,2]
[310986399,1704841842024,-500.0,0.00035616,2]
[310986400,1704841842033,-500.0,0.00035616,2]
[310986401,1704841842042,-500.0,0.00035616,2]
[310986402,1704841842051,-500.53498006,0.00035616,2]
[310986403,1704841842061,-500.0,0.00035616,2]
[310986404,1704841842071,-638.75462537,0.00035616,2]
[310986405,1704841842080,-554.2,0.00035616,2]
[310986406,1704841842089,-500.0,0.00035616,2]
[310986407,1704841842098,-500.36532895,0.00035616,2]
[310986408,1704841842107,-500.0,0.00035616,2]
[310986409,1704841842117,-500.0,0.00035616,2]
[310986410,1704841842126,-500.0,0.00035616,2]
[310986411,1704841842135,-500.0,0.00035616,2]
[310986412,1704841842145,-535.95716489,0.00035616,2]
[310986413,1704841842154,-500.0,0.00035616,2]
[310986414,1704841842163,-500.0,0.00035616,2]
[310986415,1704841842172,-500.0,0.00035616,2]
[310986416,1704841842181,-500.0,0.00035616,2]
[310986417,1704841842190,-170.42946526,0.00035616,2]
[310986418,1704841842199,-517.52671074,0.00035616,2]
[310986420,1704841842214,-500.0,0.00035616,2]
[310986421,1704841842225,-2252.18,0.00035616,2]
[310986422,1704841842234,-299.67374614,0.00035616,2]
[310986423,1704841842242,-500.0,0.00035616,2]
[310986424,1704841842252,-500.0,0.00035616,2]
[310986425,1704841842260,-500.0,0.00035616,2]
[310986426,1704841842271,-194.82128027,0.00035616,5]
[310986428,1704841842280,-502.68075034,0.00035616,2]
[310986430,1704841842289,-500.0,0.00035616,2]
[310986432,1704841842298,-694.06,0.00035616,2]
[310986434,1704841842307,-500.0,0.00035616,2]
[310986436,1704841842316,-220.0,0.00035616,2]
[310986438,1704841842325,-500.0,0.00035616,2]
[310986440,1704841842335,-500.0,0.00035616,2]
[310986444,1704841842354,-500.0,0.00035616,2]
[310986446,1704841842363,-500.0,0.00035616,2]
[310986449,1704841842372,-506.80683171,0.00035616,2]
[310986452,1704841842381,-500.0,0.00035616,2]
[310986455,1704841842390,-506.83720369,0.00035616,2]
[310986457,1704841842399,-197.03020795,0.00035616,2]
[310986459,1704841842408,-500.0,0.00035616,2]
[310986461,1704841842417,-500.0,0.00035616,2]
[310986463,1704841842428,-500.0,0.00035616,2]
[310986467,1704841842437,-500.0,0.00035616,2]
[310986469,1704841842446,-500.0,0.00035616,2]
[310986472,1704841842455,-457.66355864,0.00035616,2]
[310986475,1704841842464,-500.0,0.00035616,2]
[310986478,1704841842473,-500.0,0.00035616,2]
[310986481,1704841842483,-507.81220053,0.00035616,2]
[310986484,1704841842492,-205.3030203,0.00035616,2]
[310986486,1704841842501,-500.0,0.00035616,2]
[310986488,1704841842511,-2498.61,0.00035616,2]
[310986491,1704841842523,-500.3522875,0.00035616,2]
[310986493,1704841842531,-506.33631279,0.00035616,2]
[310986496,1704841842541,-500.0,0.00035616,2]
[310986499,1704841842551,-500.0,0.00035616,2]
[310986500,1704841842560,-500.0,0.00035616,2]
[310986503,1704841842571,-500.0,0.00035616,2]
[310986505,1704841842581,-500.0,0.00035616,2]
[310986507,1704841842590,-511.46965573,0.00035616,2]
[310986509,1704841842599,-500.0,0.00035616,2]
[310986510,1704841842608,-500.0,0.00035616,2]
[310986512,1704841842617,-205.37417053,0.00035616,2]
[310986514,1704841842626,-615.19,0.00035616,2]
[310986516,1704841842636,-500.0,0.00035616,2]
[310986518,1704841842645,-422.84860486,0.00035616,2]
[310986520,1704841842654,-513.51702195,0.00035616,2]
[310986522,1704841842663,-500.0,0.00035616,2]
[310986524,1704841842672,-608.25509253,0.00035616,2]
[310986526,1704841842681,-500.37362481,0.00035616,2]
[310986528,1704841842690,-500.0,0.00035616,2]
[310986530,1704841842699,-500.0,0.00035616,2]
[310986532,1704841842708,-20000.0,0.00035616,10]
[310986534,1704841842718,-502.57378155,0.00035616,2]
[310986536,1704841842727,-500.0,0.00035616,2]
[310986549,1704841842736,-202.38965493,0.00035616,2]
[310986551,1704841842845,-500.41361829,0.00035616,2]
[310986553,1704841842854,-500.0,0.00035616,2]
[310986555,1704841842863,-500.0,0.00035616,2]
[310986557,1704841842872,-500.72835156,0.00035616,2]
[310986559,1704841842881,-501.47854896,0.00035616,2]
[310986561,1704841842890,-547.39227854,0.00035616,2]
[310986563,1704841842899,-301.78455933,0.00035616,2]
[310986564,1704841842908,-577.71203112,0.00035616,2]
[310986566,1704841842917,-500.0,0.00035616,2]
[310986568,1704841842926,-500.44723208,0.00035616,2]
[310986570,1704841842936,-508.34241231,0.00035616,2]
[310986572,1704841842945,-500.0,0.00035616,2]
[310986574,1704841842954,-500.0,0.00035616,2]
[310986576,1704841842964,-500.0,0.00035616,2]
[310986580,1704841842972,-500.0,0.00035616,2]
[310986583,1704841842981,-500.0,0.00035616,2]
[310986585,1704841842990,-522.91458442,0.00035616,2]
[310986587,1704841842999,-1656.65,0.00035616,2]
[310986589,1704841843008,-500.0,0.00035616,2]
[310986591,1704841843017,-572.58,0.00035616,2]
[310986593,1704841843028,-500.0,0.00035616,2]
[310986595,1704841843036,-504.80763993,0.00035616,2]
[310986597,1704841843045,-500.0,0.00035616,2]
[310986599,1704841843054,-503.17940485,0.00035616,2]
[310986601,1704841843063,-500.0,0.00035616,2]
[310986603,1704841843072,-600.0,0.00035616,2]
[310986605,1704841843081,-511.67022606,0.00035616,2]
[310986607,1704841843090,-505.31403919,0.00035616,2]
[310986609,1704841843100,-500.0,0.00035616,2]
[310986611,1704841843109,-500.0,0.00035616,2]
[310986613,1704841843118,-500.0,0.00035616,2]
[310986615,1704841843127,-500.45328493,0.00035616,2]
[310986617,1704841843136,-500.0,0.00035616,2]
[310986619,1704841843145,-500.0,0.00035616,2]
[310986621,1704841843154,-500.0,0.00035616,2]
[310986623,1704841843163,-501.03286925,0.00035616,2]
[310986625,1704841843172,-500.70829364,0.00035616,2]
[310986627,1704841843181,-500.0,0.00035616,2]
[310986629,1704841843190,-880.07,0.00035616,2]
[310986631,1704841843199,-500.0,0.00035616,2]
[310986633,1704841843208,-500.0,0.00035616,2]
[310986635,1704841843218,-500.0,0.00035616,2]
[310986637,1704841843227,-220.47107168,0.00035616,2]
[310986639,1704841843236,-335.92479617,0.00035616,2]
[310986641,1704841843245,-500.0,0.00035616,2]
[310986643,1704841843254,-500.0,0.00035616,2]
[310986644,1704841843263,-502.36846477,0.00035616,2]
[310986646,1704841843275,-500.0,0.00035616,2]
[310986648,1704841843285,-500.0,0.00035616,2]
[310986650,1704841843294,-248.34132738,0.00035616,2]
[310986652,1704841843303,-500.0,0.00035616,2]
[310986654,1704841843312,-500.0,0.00035616,2]
[310986656,1704841843320,-500.0,0.00035616,2]
[310986658,1704841843329,-500.0,0.00035616,2]
[310986660,1704841843338,-500.0,0.00035616,2]
[310986662,1704841843347,-500.0,0.00035616,2]
[310986664,1704841843356,-500.0,0.00035616,2]
[310986666,1704841843365,-500.0,0.00035616,2]
[310986668,1704841843374,-500.0,0.00035616,2]
[310986670,1704841843383,-1891.98,0.00035616,2]
[310986672,1704841843392,-1409.84,0.00035616,2]
[310986674,1704841843401,-500.0,0.00035616,2]
[310986676,1704841843411,-529.83107318,0.00035616,2]
[310986678,1704841843420,-500.0,0.00035616,2]
[310986680,1704841843430,-500.0,0.00035616,2]
[310986682,1704841843440,-501.91854851,0.00035616,2]
[310986684,1704841843449,-500.0,0.00035616,2]
[310986686,1704841843458,-2626.13,0.00035616,2]
[310986688,1704841843467,-500.0,0.00035616,2]
[310986690,1704841843476,-500.0,0.00035616,2]
[310986692,1704841843486,-500.0,0.00035616,2]
[310986694,1704841843495,-500.0,0.00035616,2]
[310986696,1704841843504,-500.0,0.00035616,2]
[310986698,1704841843514,-500.0,0.00035616,2]
[310986700,1704841843524,-500.0,0.00035616,2]
[310986702,1704841843533,-500.0,0.00035616,2]
[310986704,1704841843543,-2056.36,0.00035616,2]
[310986706,1704841843551,-1480.6,0.00035616,2]
[310986708,1704841843561,-2056.36,0.00035616,2]
[310986710,1704841843570,-1480.6,0.00035616,2]
[310986712,1704841843579,-1480.6,0.00035616,2]
[310986714,1704841843588,-2056.36,0.00035616,2]
[310986716,1704841843597,-1480.6,0.00035616,2]
[310986718,1704841843606,-2056.36,0.00035616,2]
[310986720,1704841843615,-1480.6,0.00035616,2]
[310986722,1704841843624,-2056.36,0.00035616,2]
[310986724,1704841843633,-1480.6,0.00035616,2]
[310986726,1704841843642,-2056.36,0.00035616,2]
[310986728,1704841843651,-2056.36,0.00035616,2]
[310986730,1704841843660,-1480.6,0.00035616,2]
[310986731,1704841843669,-2056.36,0.00035616,2]
[310986734,1704841843678,-1480.6,0.00035616,2]
[310986736,1704841843688,-843.57,0.00035616,2]
[310986737,1704841843697,-2056.36,0.00035616,2]
[310986740,1704841843707,-1480.6,0.00035616,2]
[310986742,1704841843716,-2056.36,0.00035616,2]
[310986744,1704841843725,-1480.6,0.00035616,2]
[310986746,1704841843735,-2056.36,0.00035616,2]
[310986747,1704841843744,-1480.6,0.00035616,2]
[310986749,1704841843753,-2056.36,0.00035616,2]
[310986751,1704841843762,-1480.6,0.00035616,2]
[310986753,1704841843771,-2056.36,0.00035616,2]
[310986755,1704841843781,-500.0,0.00035616,2]
[310986757,1704841843794,-1480.6,0.00035616,2]
[310986759,1704841843803,-2056.36,0.00035616,2]
[310986761,1704841843812,-1480.6,0.00035616,2]
[310986763,1704841843821,-1480.6,0.00035616,2]
[310986765,1704841843831,-1480.6,0.00035616,2]
[310986767,1704841843840,-2056.36,0.00035616,2]
[310986769,1704841843849,-1480.6,0.00035616,2]
[310986771,1704841843858,-2056.36,0.00035616,2]
[310986773,1704841843867,-1480.6,0.00035616,2]
[310986775,1704841843876,-2056.36,0.00035616,2]
[310986777,1704841843886,-1480.6,0.00035616,2]
[310986778,1704841843896,-2056.36,0.00035616,2]
[310986780,1704841843905,-1480.6,0.00035616,2]
[310986782,1704841843914,-2056.36,0.00035616,2]
[310986784,1704841843923,-1480.6,0.00035616,2]
[310986786,1704841843932,-2056.36,0.00035616,2]
[310986788,1704841843940,-2056.36,0.00035616,2]
[310986790,1704841843949,-2056.36,0.00035616,2]
[310986792,1704841843958,-1480.6,0.00035616,2]
[310986794,1704841843968,-92.72114178,0.00035616,2]
[310986798,1704841843992,-407.27885822,0.00035616,2]
[310986800,1704841844001,-1480.6,0.00035616,2]
[310986802,1704841844009,-2056.36,0.00035616,2]
[310986804,1704841844018,-1480.71841585,0.00035616,2]
[310986806,1704841844029,-2056.54844852,0.00035616,2]
[310986808,1704841844037,-500.0,0.00035616,2]
[310986810,1704841844046,-500.28637747,0.00035616,2]
[310986812,1704841844055,-500.0,0.00035616,2]
[310986814,1704841844064,-500.0,0.00035616,2]
[310986815,1704841844073,-500.0,0.00035616,2]
[310986817,1704841844082,-500.0,0.00035616,2]
[310986819,1704841844091,-500.0,0.00035616,2]
[310986821,1704841844100,-523.29,0.00035616,2]
[310986823,1704841844109,-500.0,0.00035616,2]
[310986825,1704841844118,-500.0,0.00035616,2]
[310986827,1704841844127,-500.0,0.00035616,2]
[310986829,1704841844136,-356.09894193,0.00035616,2]
[310986831,1704841844145,-500.0,0.00035616,2]
[310986833,1704841844154,-493.31782965,0.00035616,2]
[310986835,1704841844163,-2404.59,0.00035616,2]
[310986837,1704841844172,-520.06525507,0.00035616,2]
[310986839,1704841844180,-500.0,0.00035616,2]
[310986841,1704841844189,-501.41201149,0.00035616,2]
[310986843,1704841844199,-500.20616363,0.00035616,2]
[310986845,1704841844208,-500.0,0.00035616,2]
[310986847,1704841844219,-500.0,0.00035616,2]
[310986849,1704841844231,-517.92350944,0.00035616,2]
[310986851,1704841844242,-500.0,0.00035616,2]
[310986853,1704841844251,-511.79602753,0.00035616,2]